bitfinex/quotes_ETHUSD_20250810
["timestamp","ask_amount","ask_price","bid_price","bid_amount"]
[1754794747562,0.9558,4250.1,4250.0,7.87270588]
[1754794748567,0.4854,4250.8,4250.6,1.76445501]
[1754794748864,0.4854,4250.7,4250.4,1.7645398]
[1754794749065,1.3,4251.4,4250.8,1.76436403]
[1754794749413,0.4854,4250.9,4250.8,1.76436403]
[1754794749898,0.9558,4250.9,4250.8,1.76436403]
[1754794750050,0.1176,4250.9,4250.8,1.76436403]
[1754794750255,0.4854,4251.2,4251.1,1.76424925]
[1754794750606,0.9558,4251.2,4251.1,1.76424925]
[1754794751554,0.1176,4251.3,4251.2,1.76420775]
[1754794751854,0.002,4252.1,4252.0,1.76387582]
[1754794753168,0.9578,4252.1,4252.0,1.76387582]
[1754794755586,0.9578,4252.1,4251.7,3.609]
[1754794755587,0.9578,4252.1,4251.4,5.37212087]
[1754794755902,0.1176,4251.9,4251.6,1.76400108]
[1754794756090,0.4704,4251.8,4251.6,1.76400108]
[1754794756406,0.4704,4251.8,4251.7,1.76400028]
[1754794758203,0.4704,4251.8,4251.6,1.76403119]
[1754794758400,0.4704,4251.8,4251.7,1.76400028]
[1754794758778,0.4925,4251.8,4251.6,1.76403252]
[1754794758981,0.1176,4251.9,4251.2,1.76416728]
[1754794758982,0.4641,4251.7,4251.2,1.76420605]
[1754794759171,0.1176,4251.6,4251.0,0.1176]
[1754794759499,0.4641,4251.5,4250.8,1.88195574]
[1754794759686,0.1176,4251.3,4250.8,0.1176]
[1754794760088,2.75022405,4251.2,4250.7,3.608]
[1754794760265,0.1176,4251.0,4250.7,3.608]
[1754794760675,0.9566,4250.9,4250.4,1.88213251]
[1754794761011,0.9566,4250.8,4250.4,1.88213251]
[1754794761189,0.9566,4250.7,4250.5,3.608]
[1754794761511,0.9566,4250.6,4250.5,3.608]
[1754794761699,0.4641,4250.6,4250.5,3.608]
[1754794762988,0.1176,4250.7,4250.5,3.608]
[1754794764222,0.5817,4250.7,4250.5,3.608]
[1754794765493,0.9566,4250.6,4250.5,3.608]
[1754794765689,0.9566,4250.6,4250.3,3.609]
[1754794765890,0.4641,4250.5,4250.3,3.609]
[1754794766090,0.4641,4250.5,4250.3,5.37356833]
[1754794766500,0.4641,4250.4,4250.3,3.609]
[1754794766921,0.4641,4250.4,4250.3,5.37358132]
[1754794767223,0.4641,4250.7,4250.3,5.37358132]
[1754794767418,1.76434424,4250.9,4250.3,3.609]
[1754794767618,0.4641,4250.6,4250.3,5.37357447]
[1754794768427,0.02940553,4250.9,4250.3,0.001]
[1754794768736,0.9566,4250.5,4250.3,0.001]
[1754794769239,0.9566,4250.4,4250.3,0.001]
[1754794769408,0.9566,4250.4,4250.1,1.7646631]
[1754794769729,0.9566,4250.3,4250.1,1.7646631]
[1754794769937,0.9566,4250.3,4250.2,1.76462284]
[1754794771329,0.9566,4250.9,4250.5,1.76447727]
[1754794771632,0.4641,4250.7,4250.2,1.76462284]
[1754794771836,0.9566,4250.6,4250.4,1.76453961]
[1754794772016,0.4925,4250.6,4250.4,1.76453961]
[1754794772204,0.4641,4250.5,4250.4,1.76453961]
[1754794772934,0.9566,4250.5,4250.4,1.76453961]
[1754794773426,0.4641,4251.0,4250.6,1.76445603]
[1754794773728,0.9566,4250.9,4250.3,5.37255814]
[1754794774036,0.9566,4250.9,4250.5,1.76446912]
[1754794774238,0.4641,4250.8,4250.6,1.76445565]
[1754794775539,0.4641,4250.8,4250.7,1.76441527]
[1754794776139,0.4641,4250.8,4250.6,5.37245284]
[1754794776454,0.4641,4250.8,4250.7,1.76441527]
[1754794777151,0.5817,4250.8,4250.6,5.37244685]
[1754794778326,0.5817,4250.8,4250.6,3.608]
[1754794778757,0.5817,4250.8,4250.7,1.76441527]
[1754794778957,0.5817,4250.8,4250.6,5.37244263]
[1754794779487,0.5817,4250.8,4250.6,3.608]
[1754794780169,1.0742,4250.8,4250.6,5.37244952]
[1754794780466,1.0742,4250.8,4250.2,0.1176]
[1754794780624,0.1176,4250.5,4250.2,1.76461497]
[1754794780830,0.9566,4250.4,4250.2,1.76461497]
[1754794781036,0.1176,4250.5,4250.2,1.76461497]
[1754794781267,0.9566,4250.3,4250.2,1.76461497]
[1754794781444,0.9566,4250.3,4250.2,5.37161497]
[1754794783164,0.1176,4250.5,4250.2,3.607]
[1754794783386,0.4641,4250.3,4250.2,3.607]
[1754794783687,0.9566,4250.3,4250.2,3.607]
[1754794784093,0.9566,4250.3,4250.2,5.37162284]
[1754794784788,0.9566,4250.3,4250.2,3.607]
[1754794784977,0.1176,4250.5,4250.2,3.607]
[1754794785366,0.5817,4250.5,4250.3,1.76455409]
[1754794785687,0.9566,4250.4,4250.2,3.607]
[1754794785984,0.9566,4250.3,4250.0,4.26469384]
[1754794786160,0.1176,4250.5,4250.1,0.001]
[1754794786360,0.9566,4250.2,4250.1,0.001]
[1754794787086,0.9566,4250.2,4250.1,1.76566436]
[1754794787679,0.9097,4250.2,4250.1,1.76566436]
[1754794788476,0.9097,4250.2,4250.1,0.001]
[1754794789485,0.9097,4250.2,4250.1,1.76566436]
[1754794790590,0.9097,4250.2,4250.1,0.001]
[1754794791702,0.9097,4250.2,4250.1,1.76566436]
[1754794792487,0.5489,4250.5,4250.1,0.001]
[1754794792691,0.4313,4250.4,4250.2,1.76458372]
[1754794792915,0.1176,4250.5,4250.3,1.76455882]
[1754794793218,0.1176,4250.5,4250.2,3.607]
[1754794793521,1.0273,4250.5,4250.2,3.607]
[1754794793719,0.4313,4250.4,4250.2,3.607]
[1754794794216,0.1176,4250.5,4250.2,5.37161732]
[1754794794836,0.1176,4250.5,4250.2,5.37161421]
[1754794795043,0.1176,4250.5,4250.2,3.607]
[1754794795622,0.9097,4250.4,4250.2,3.607]
[1754794795822,0.9097,4250.3,4250.2,3.607]
[1754794797915,0.9097,4250.3,4250.1,0.001]
[1754794798114,0.1176,4250.5,4250.1,0.001]
[1754794798115,0.9097,4250.2,4250.1,0.001]
[1754794798343,1.0273,4250.2,4250.1,0.001]
[1754794799120,2.79192284,4250.2,4250.1,0.001]
[1754794799756,3.24756508,4250.2,4250.1,0.001]
[1754794799919,6.24756508,4250.2,4250.1,0.001]
[1754794800116,6.74667412,4250.2,4250.1,0.001]
[1754794801239,6.15067412,4250.2,4250.1,0.2213948]
[1754794801523,10.23607412,4250.2,4250.1,0.2213948]
[1754794804053,18.34781666,4250.2,4250.1,0.2213948]
[1754794804253,18.34781666,4250.2,4250.1,0.22098686]
[1754794806151,18.34781666,4250.2,4250.1,0.22083046]
[1754794806759,10.23607412,4250.2,4250.1,0.22083046]
[1754794807166,1.76478893,4249.8,4249.7,1e-08]
[1754794807334,4.76483045,4249.7,4249.6,1e-08]
[1754794807532,5.67453045,4249.7,4249.6,1e-08]
[1754794809668,9.28153045,4249.7,4249.6,1e-08]
[1754794809874,1.76499658,4249.3,4249.2,1e-08]
[1754794810170,8.37199658,4249.3,4249.2,1e-08]
[1754794811352,8.48959658,4249.3,4249.2,1e-08]
[1754794812148,9.60602044,4249.3,4249.2,1e-08]
[1754794812349,10.51572044,4249.3,4249.2,1e-08]
[1754794812870,10.03732044,4249.3,4249.2,1e-08]
[1754794813070,9.60602044,4249.3,4249.2,1e-08]
[1754794813573,5.48959658,4249.3,4249.2,1e-08]
[1754794814181,6.39929658,4249.3,4249.2,1e-08]
[1754794814548,5.92089658,4249.3,4249.2,1e-08]
[1754794815552,2.31389658,4249.3,4249.2,1e-08]
[1754794815771,5.92089658,4249.3,4249.2,1e-08]
[1754794816073,5.48959658,4249.3,4249.2,1e-08]
[1754794816377,6.20293172,4249.3,4249.2,1e-08]
[1754794817283,6.63603172,4249.3,4249.2,1e-08]
[1754794818354,7.13313172,4249.3,4249.2,1e-08]
[1754794819251,7.13313172,4249.3,4249.2,0.2194119]
[1754794820985,5.37199658,4249.3,4249.2,0.2194119]
[1754794821692,4.0401,4249.3,4249.2,0.2194119]
[1754794822195,3.607,4249.3,4249.2,0.2194119]
[1754794822501,4.0401,4249.3,4249.2,0.2194119]
[1754794822988,5.37199658,4249.3,4249.2,0.2194119]
[1754794823288,7.05920286,4249.3,4249.2,0.2194119]
[1754794826587,6.56210286,4249.3,4249.2,0.2194119]
[1754794826910,3.607,4249.3,4249.2,0.2194119]
[1754794827211,5.37199658,4249.3,4249.2,0.2194119]
[1754794828103,5.80509658,4249.3,4249.2,0.2194119]
[1754794828484,6.30219658,4249.3,4249.2,0.2194119]
[1754794830874,5.92269658,4249.3,4249.2,0.2194119]
[1754794831709,6.41979658,4249.3,4249.2,0.2194119]
[1754794833987,2.81279658,4249.3,4249.2,0.2194119]
[1754794834175,6.41779658,4249.3,4249.2,0.2194119]
[1754794834378,2.81279658,4249.3,4249.2,0.2194119]
[1754794834684,5.92069658,4249.3,4249.2,0.2194119]
[1754794835411,5.48759658,4249.3,4249.2,0.2194119]
[1754794835590,6.41779658,4249.3,4249.2,0.2194119]
[1754794838409,7.02075279,4249.3,4249.2,0.2194119]
[1754794839500,7.51987183,4249.3,4249.2,0.2194119]
[1754794840096,10.51987183,4249.3,4249.2,0.2194119]
[1754794840418,1.76516274,4248.9,4248.8,4.04614325]
[1754794840615,17.88273225,4248.9,4248.8,3.42834325]
[1754794840912,18.93185129,4248.9,4248.8,2.63414325]
[1754794841115,18.93185129,4248.9,4248.8,0.57621883]
[1754794841314,19.75674121,4248.9,4248.8,0.57621883]
[1754794841520,18.93185129,4248.9,4248.8,0.57621883]
[1754794841687,19.75674121,4248.9,4248.8,0.57621883]
[1754794842015,18.93185129,4248.9,4248.8,0.57621883]
[1754794842697,28.93185129,4248.9,4248.8,0.57621883]
[1754794843216,28.93185129,4248.9,4248.3,1e-08]
[1754794843217,0.55,4248.7,4248.3,1e-08]
[1754794843424,0.55,4247.7,4247.3,1e-08]
[1754794843633,9.87752866,4247.4,4247.3,1e-08]
[1754794843784,13.3766477,4247.4,4247.3,1e-08]
[1754794843985,8.26682507,4247.4,4246.9,0.4631]
[1754794844216,0.4631,4247.6,4247.0,0.4631]
[1754794844422,3.605,4247.5,4247.0,0.4631]
[1754794844612,5.37076071,4247.5,4247.0,0.4631]
[1754794844814,10.0,4248.4,4247.1,0.9612]
[1754794845010,0.4981,4248.1,4247.2,0.97498449]
[1754794845214,0.4981,4248.1,4246.8,8.11174254]
[1754794845215,0.4981,4248.1,4247.9,1.7655384]
[1754794845413,10.0,4248.4,4247.3,0.9612]
[1754794845612,10.0,4248.4,4247.4,4.88227509]
[1754794845931,3.605,4249.2,4247.7,3.55]
[1754794846126,3.605,4249.1,4248.6,1.76524964]
[1754794846326,9.03764254,4249.0,4247.8,0.4631]
[1754794846527,1.76536148,4248.5,4247.8,0.4631]
[1754794846733,3.605,4248.4,4247.8,0.4631]
[1754794846894,3.605,4248.3,4247.8,0.4631]
[1754794847097,5.37041695,4248.3,4247.4,2.22885334]
[1754794847440,3.605,4248.3,4247.2,1.7658287]
[1754794847725,1.7656592,4247.8,4247.1,0.4293]
[1754794847899,3.605,4247.7,4247.1,0.4293]
[1754794848102,5.37066742,4247.7,4247.1,0.4293]
[1754794848300,3.605,4247.7,4247.1,0.4293]
[1754794848521,3.605,4247.7,4247.0,1.76594617]
[1754794848700,5.37070298,4247.6,4247.1,0.4293]
[1754794848900,0.5370623,4247.7,4247.1,0.4293]
[1754794849114,1.76570337,4247.6,4247.1,0.4293]
[1754794849442,3.605,4247.5,4247.2,0.9245]
[1754794849605,1.76553966,4248.0,4247.3,0.9245]
[1754794849805,1.76550004,4248.1,4247.3,2.69031823]
[1754794850034,0.49757876,4248.6,4247.4,0.4293]
[1754794850333,3.605,4248.5,4247.5,0.4952]
[1754794850550,3.605,4248.5,4247.4,0.4293]
[1754794850551,1.76553807,4248.0,4247.4,0.4293]
[1754794850751,3.605,4247.9,4247.5,1.7657377]
[1754794851042,3.605,4247.8,4247.6,0.4293]
[1754794851696,3.605,4248.3,4248.2,1.76544537]
[1754794851899,3.605,4248.3,4248.2,0.4293]
[1754794852302,3.605,4248.6,4248.2,0.9245]
[1754794852502,3.605,4248.6,4248.3,2.90971369]
[1754794852734,3.605,4248.6,4248.4,0.64912981]
[1754794852950,3.605,4248.6,4248.5,0.21982981]
[1754794853163,4.5331,4248.6,4248.5,0.21982981]
[1754794853348,6.41598738,4248.6,4248.5,0.21982981]
[1754794854543,5.81098738,4248.6,4248.5,0.21982981]
[1754794854754,0.1176,4248.6,4248.5,0.21982981]
[1754794854922,1.48640451,4248.6,4248.5,0.21982981]
[1754794855122,3.7226,4248.6,4248.5,0.21982981]
[1754794856013,5.48788738,4248.6,4248.5,0.21982981]
[1754794856211,5.98718738,4248.6,4248.5,0.21982981]
[1754794856619,0.04,4248.9,4248.5,0.64917435]
[1754794856827,3.7226,4248.6,4248.5,0.4293]
[1754794857024,3.7226,4248.6,4248.5,0.64916524]
[1754794857843,3.7226,4248.6,4248.5,0.21986524]
[1754794858453,5.48788738,4248.6,4248.5,0.21986524]
[1754794858620,3.7226,4248.6,4248.5,0.21986524]
[1754794859042,5.48788738,4248.6,4248.5,0.21986524]
[1754794859242,3.7226,4248.6,4248.5,0.21986524]
[1754794859441,5.48788738,4248.6,4248.5,0.21990507]
[1754794859649,3.7226,4248.6,4248.5,0.21990507]
[1754794859853,0.1176,4248.6,4248.5,0.21990507]
[1754794860066,3.7226,4248.6,4248.5,0.21990507]
[1754794860450,3.7226,4248.6,4248.5,2.414534]
[1754794860651,3.7226,4248.6,4248.5,0.64920507]
[1754794860971,3.605,4248.6,4248.5,2.909734]
[1754794861128,0.1576,4248.9,4248.5,1.14440507]
[1754794861331,3.605,4248.8,4248.6,1.14440507]
[1754794861553,3.605,4248.8,4248.7,0.21990507]
[1754794861859,3.605,4248.8,4248.7,2.41443936]
[1754794862046,3.605,4248.8,4248.7,0.64920507]
[1754794862562,6.30250429,4248.8,4248.7,0.21990507]
[1754794862747,6.85527669,4248.8,4248.7,0.21990507]
[1754794863358,9.85527669,4248.8,4248.7,0.21990507]
[1754794864437,10.90260985,4248.8,4248.7,0.21990507]
[1754794865077,10.40527669,4248.8,4248.7,0.21990507]
[1754794865256,10.90264287,4248.8,4248.7,0.21990507]
[1754794866133,10.90264287,4248.8,4247.3,0.001]
[1754794866134,5.86704068,4248.7,4247.3,0.001]
[1754794866334,1.76578612,4247.4,4247.3,0.001]
[1754794866557,5.37078612,4247.4,4247.3,0.001]
[1754794866962,5.87008612,4247.4,4247.3,0.001]
[1754794867385,5.87008612,4247.4,4246.9,0.001]
[1754794867386,2.31595243,4247.0,4246.9,0.001]
[1754794867556,1.76628514,4246.2,4246.1,0.001]
[1754794867761,5.40772322,4246.2,4246.1,0.001]
[1754794867982,5.87758514,4246.2,4246.1,0.001]
[1754794868467,9.32258514,4246.2,4246.1,0.001]
[1754794868648,8.87758514,4246.2,4246.1,0.001]
[1754794868844,9.94196622,4246.2,4246.1,0.001]
[1754794869050,6.32996622,4246.2,4246.1,0.001]
[1754794869254,9.94296622,4246.2,4246.1,0.001]
[1754794871278,9.94196622,4246.2,4246.1,0.001]
[1754794872837,7.30886622,4246.2,4246.1,0.001]
[1754794873043,10.37186622,4246.2,4246.1,0.001]
[1754794873880,10.37186622,4246.2,4244.7,0.4293]
[1754794873881,0.55,4246.0,4244.7,0.4293]
[1754794874094,1.76686769,4244.8,4244.7,0.4293]
[1754794874279,5.38086769,4244.8,4244.7,0.4293]
[1754794875685,1.76686769,4244.8,4244.7,0.4293]
[1754794876395,1.76695778,4244.6,4244.3,0.4293]
[1754794876682,1.7669632,4244.6,4244.3,0.3093]
[1754794876865,3.613,4244.5,4244.2,0.1176]
[1754794877066,3.613,4244.4,4244.2,0.1176]
[1754794877267,0.04,4244.9,4243.5,3.0]
[1754794877469,3.613,4244.8,4243.6,0.31383389]
[1754794877682,3.613,4244.8,4242.7,0.4952]
[1754794877850,3.613,4244.8,4242.9,1.76765891]
[1754794878179,1.76694575,4244.7,4243.9,1.76721233]
[1754794878384,1.76694575,4244.7,4244.0,1.98618192]
[1754794878385,1.76691206,4244.7,4244.0,1.98618192]
[1754794878685,3.613,4244.8,4244.1,0.60368507]
[1754794878686,5.37990425,4244.8,4244.1,0.60368507]
[1754794878845,5.37990425,4244.8,4243.8,1.76724479]
[1754794879046,1.76692522,4244.7,4244.0,1.76716677]
[1754794879248,1.76690932,4244.7,4244.1,0.4347]
[1754794879465,5.37987903,4244.8,4244.1,2.20185804]
[1754794879784,1.76692348,4244.7,4244.1,0.4347]
[1754794880179,3.613,4244.8,4244.1,0.4347]
[1754794880649,1.76699257,4244.5,4243.5,0.4347]
[1754794880843,1.76711018,4244.3,4243.5,2.20209791]
[1754794881061,1.71711018,4244.3,4243.6,0.4347]
[1754794881410,3.615,4244.3,4244.0,1.76719127]
[1754794881561,3.615,4244.3,4244.1,0.4347]
[1754794881869,1.7670409,4244.4,4244.2,0.4347]
[1754794882055,5.38307584,4244.3,4244.0,0.0008]
[1754794882260,3.616,4244.2,4244.0,0.0008]
[1754794882461,5.38315911,4244.1,4244.0,0.0008]
[1754794884466,1.76721266,4244.0,4243.4,0.3855]
[1754794884924,5.38316103,4244.1,4243.4,2.15294777]
[1754794885131,1.76724306,4243.9,4243.4,0.39205208]
[1754794885296,3.616,4243.8,4243.3,1.76749065]
[1754794885498,3.616,4243.8,4242.2,3.0]
[1754794885698,3.616,4243.8,4242.2,4.767933]
[1754794886000,3.616,4243.8,4242.6,1.76778325]
[1754794886213,1.76761289,4243.1,4242.3,1.76787168]
[1754794886435,1.76732871,4243.7,4241.6,0.4747]
[1754794886647,1.76747994,4243.4,4242.5,1.76778674]
[1754794886928,1.76747994,4243.4,4241.8,1.7681173]
[1754794886929,1.76732568,4243.7,4242.0,1.76802258]
[1754794887136,1.76732568,4243.7,4242.4,0.4347]
[1754794887137,1.76761164,4243.1,4242.4,0.4347]
[1754794887445,3.626,4243.0,4242.1,1.76799067]
[1754794887734,5.39366645,4242.9,4242.2,0.4347]
[1754794887934,10.0,4244.0,4242.2,0.4347]
[1754794888133,13.64,4244.0,4242.4,1.76786724]
[1754794888346,13.64,4244.0,4243.4,1.76744003]
[1754794888502,13.64,4244.0,4243.6,1.76734469]
[1754794888838,3.64,4244.0,4243.6,0.4347]
[1754794889039,3.64,4244.0,4243.6,2.20203175]
[1754794889251,3.642,4243.9,4243.6,0.4347]
[1754794889538,0.18092361,4244.5,4243.5,0.013839]
[1754794889747,10.0,4245.3,4243.7,0.4347]
[1754794889911,3.688,4244.9,4243.7,2.20201685]
[1754794890103,3.688,4244.9,4243.8,2.20198403]
[1754794890299,3.688,4244.9,4244.7,1.76690099]
[1754794890516,0.04,4244.9,4244.8,1.98508788]
[1754794890723,0.04,4244.9,4244.8,2.41978788]
[1754794891702,0.04,4244.9,4244.8,0.21822019]
[1754794891902,0.4739,4244.9,4244.8,0.21822019]
[1754794892106,3.88659,4244.9,4244.8,0.21822019]
[1754794892534,9.30841607,4244.9,4244.8,0.21822019]
[1754794892734,9.30741607,4244.9,4244.8,0.21822019]
[1754794892922,0.45269,4244.9,4244.8,0.21822019]
[1754794893123,5.89472607,4244.9,4244.8,0.21822019]
[1754794894908,8.89472607,4244.9,4244.8,0.21822019]
[1754794895153,9.38997368,4244.9,4244.8,0.21822019]
[1754794895507,9.93997368,4244.9,4244.8,0.21822019]
[1754794895715,10.40437368,4244.9,4244.8,0.21822019]
[1754794895911,12.68926357,4244.9,4244.8,0.21822019]
[1754794896155,8.75655202,4244.9,4244.8,0.21822019]
[1754794896310,12.68726357,4244.9,4244.8,0.21822019]
[1754794896633,13.28726357,4244.9,4244.8,0.21822019]
[1754794896949,1.76746254,4243.4,4242.6,0.4347]
[1754794897120,3.656,4243.3,4243.2,1.76753393]
[1754794897308,0.1176,4243.5,4243.2,2.20223393]
[1754794897511,3.657,4243.4,4243.2,1.76753393]
[1754794897712,4.12035751,4243.4,4241.9,0.4347]
[1754794897911,0.1176,4242.9,4241.9,0.4347]
[1754794898154,3.658,4242.8,4242.4,1.7678565]
[1754794898326,3.658,4242.8,4242.1,0.1176]
[1754794898649,3.658,4242.8,4242.3,1.7678994]
[1754794898823,3.658,4242.8,4241.8,1.76807682]
[1754794898824,0.4339,4242.7,4241.8,1.76807682]
[1754794899029,0.1176,4242.2,4241.8,1.76808807]
[1754794899247,3.658,4242.1,4241.8,1.76808807]
[1754794899552,3.658,4242.1,4241.6,0.1576]
[1754794899711,3.658,4242.1,4241.6,1.92579924]
[1754794899913,3.658,4242.1,4241.6,0.1576]
[1754794900115,1.88576701,4241.7,4240.6,0.04]
[1754794900413,3.92776723,4242.0,4240.6,0.04]
[1754794900414,3.0,4241.5,4240.6,0.04]
[1754794900613,3.0,4241.3,4240.6,0.04]
[1754794900814,0.49557687,4241.3,4240.6,0.04]
[1754794901044,3.711,4241.2,4240.6,0.04]
[1754794901247,3.72,4241.1,4240.6,0.04]
[1754794901429,1.76849253,4240.9,4240.6,0.04]
[1754794901745,0.6,4240.8,4240.6,0.04]
[1754794902107,0.372,4241.1,4241.0,1.76845083]
[1754794902340,10.0,4241.2,4241.1,1.76840913]
[1754794902536,10.0,4241.2,4241.1,2.20310913]
[1754794902920,0.59774095,4242.1,4242.0,1.76803394]
[1754794903251,3.728,4242.7,4241.7,0.4347]
[1754794903427,3.728,4242.6,4242.1,1.7679871]
[1754794903625,3.73,4242.5,4242.2,1.76794469]
[1754794903827,0.46336445,4242.4,4240.6,0.4747]
[1754794904024,0.41933645,4242.3,4241.7,1.76815326]
[1754794904226,0.41933645,4242.3,4241.5,1.76820097]
[1754794904417,3.734,4242.2,4241.6,1.76819524]
[1754794904615,0.41933645,4242.3,4241.7,1.76815602]
[1754794904845,3.733,4242.2,4241.7,1.76815602]
[1754794905860,0.4339,4242.4,4240.7,1.76857594]
[1754794905861,3.732,4242.1,4242.0,1.76803394]
[1754794906028,10.0,4242.9,4242.6,1.76774497]
[1754794906218,10.0,4242.9,4241.3,0.55]
[1754794906413,10.0,4242.9,4242.8,1.76770057]
[1754794906739,1.12225143,4243.2,4242.9,1.76765891]
[1754794907046,1.12225143,4243.2,4242.9,2.20235891]
[1754794907210,0.04,4243.9,4243.6,1.76734753]
[1754794907411,0.3773,4243.8,4243.7,1.76732568]
[1754794907642,0.04,4243.9,4243.6,1.76734753]
[1754794908144,0.04,4243.9,4243.7,0.4292]
[1754794908345,0.04,4243.9,4243.8,1.76728403]
[1754794908535,0.04,4243.9,4243.8,2.19648403]
[1754794909214,0.04,4243.9,4243.8,2.42920385]
[1754794909415,0.04,4244.9,4243.8,2.41536689]
[1754794909735,0.04,4244.9,4244.8,1.76686769]
[1754794909947,0.04,4244.9,4244.8,1.99957363]
[1754794910134,0.04,4244.9,4244.8,2.42877363]
[1754794910448,0.04,4244.9,4244.8,2.53255055]
[1754794910851,0.04,4244.9,4244.8,2.96249856]
[1754794911051,1e-08,4244.9,4244.8,5.96249856]
[1754794911354,1e-08,4245.3,4245.2,2.31670121]
[1754794911556,1e-08,4245.3,4245.2,5.53558407]
[1754794911846,1e-08,4245.3,4245.2,7.29651875]
[1754794912555,0.04,4245.9,4245.8,0.55]
[1754794912729,0.04,4245.9,4245.8,9.29114362]
[1754794912932,0.04,4245.9,4245.8,9.70653441]
[1754794915032,0.04,4245.9,4245.8,4.98533441]
[1754794915231,0.04,4245.9,4245.8,5.91306785]
[1754794915452,0.04,4245.9,4245.8,0.21888286]
[1754794915643,2.28100994,4245.9,4245.8,0.21888286]
[1754794916044,0.5146,4245.9,4245.8,0.21888286]
[1754794916239,0.04,4245.9,4245.8,0.21888286]
[1754794917321,2.28100994,4245.9,4245.8,0.21888286]
[1754794917516,2.28100994,4245.9,4244.0,4.1692]
[1754794917517,1.4149351,4245.9,4244.0,4.1692]
[1754794917748,4.24404085,4245.8,4244.1,0.21784085]
[1754794917951,1.7667767,4245.1,4244.2,0.21784085]
[1754794918154,0.50404155,4245.7,4244.3,0.21784085]
[1754794918482,0.4746,4245.0,4244.4,0.21784085]
[1754794918657,0.4746,4245.0,4244.5,0.21784085]
[1754794918846,0.4746,4244.9,4244.6,0.21784085]
[1754794919046,0.4746,4245.6,4244.7,0.21784085]
[1754794919347,1.76682607,4244.9,4244.8,0.21784085]
[1754794919549,2.24142607,4244.9,4244.8,0.21784085]
[1754794919754,2.18796058,4245.5,4244.8,0.21784085]
[1754794919755,1.76678612,4245.0,4244.8,0.21784085]
[1754794920056,1.76678612,4245.0,4244.9,0.21784085]
[1754794920253,2.24138612,4245.0,4244.9,0.21784085]
[1754794920664,0.707354,4245.6,4244.9,0.21784085]
[1754794920827,0.707354,4245.6,4245.0,0.21784085]
[1754794921027,0.707354,4245.6,4245.1,0.21784085]
[1754794921267,0.1176,4245.5,4245.2,0.21784085]
[1754794921429,2.24121798,4245.4,4245.3,0.21784085]
[1754794921766,1.2058818,4245.4,4245.3,0.21777061]
[1754794921971,1.76674283,4245.1,4244.5,0.1176]
[1754794922136,1.76693579,4244.7,4244.6,0.21778925]
[1754794922578,2.24153579,4244.7,4244.6,0.21778925]
[1754794922791,0.1176,4245.1,4244.6,0.21778925]
[1754794922953,1.76685693,4244.9,4244.7,0.21778925]
[1754794923155,1.76685693,4244.9,4244.5,0.1176]
[1754794923156,0.25289261,4245.1,4244.8,0.21785076]
[1754794923481,1.76695094,4244.6,4244.5,0.1176]
[1754794923687,0.5040464,4245.0,4244.5,0.33540014]
[1754794923885,0.4746,4244.9,4244.6,0.21780014]
[1754794924191,0.4746,4244.9,4244.5,0.1176]
[1754794924490,0.4746,4244.9,4244.6,0.21785548]
[1754794924868,0.0294464,4245.0,4244.6,0.21785548]
[1754794925062,1.79623632,4245.0,4244.6,0.21785548]
[1754794925275,1.76686769,4244.8,4243.8,1.76728152]
[1754794925479,0.4746,4244.9,4244.4,1.76703152]
[1754794925676,0.1176,4245.1,4244.5,1.98476681]
[1754794926021,0.1176,4245.1,4244.6,0.21779316]
[1754794926287,0.1176,4245.1,4244.4,1.76702246]
[1754794926590,0.1176,4245.1,4244.5,0.21779376]
[1754794926894,0.1176,4245.1,4244.6,0.21779376]
[1754794927096,0.1176,4245.1,4244.7,1.98467364]
[1754794927262,1.8843432,4245.1,4244.8,0.21779351]
[1754794927458,2.27083688,4245.0,4244.3,1.88466552]
[1754794927711,0.55,4244.9,4242.9,0.4292]
[1754794927995,0.55,4244.9,4241.2,1.76834337]
[1754794927996,1.7674806,4243.4,4243.0,0.21783117]
[1754794928206,0.4746,4243.4,4243.1,0.21783117]
[1754794928506,3.735,4243.5,4242.8,1.76769946]
[1754794928799,1.76746922,4243.4,4242.9,0.2178955]
[1754794929096,0.50405751,4243.4,4243.0,0.2178955]
[1754794929257,2.27155048,4243.3,4242.6,0.04]
[1754794929593,0.4746,4243.3,4242.7,0.21794938]
[1754794929808,1.76766095,4242.9,4242.8,0.21794938]
[1754794930009,5.97626095,4242.9,4242.6,0.04]
[1754794930217,1.76774223,4242.7,4242.6,0.04]
[1754794930418,1.5676261,4242.8,4242.6,0.04]
[1754794930632,0.4746,4243.3,4242.6,0.04]
[1754794930785,3.738,4243.2,4242.7,0.21818151]
[1754794931115,3.738,4243.2,4242.6,0.04]
[1754794931116,3.0,4243.1,4242.8,0.21818151]
[1754794931276,3.0,4243.1,4242.6,0.04]
[1754794931277,3.50405959,4243.1,4242.6,0.04]
[1754794931620,5.97925489,4243.0,4242.7,0.21837591]
[1754794931818,5.97925489,4243.0,4242.8,0.21837591]
[1754794931976,4.2116,4243.0,4242.9,0.21837591]
[1754794932176,1.76749685,4243.3,4242.9,0.21837591]
[1754794932402,3.0,4243.1,4243.0,0.21851663]
[1754794932876,3.742,4243.2,4243.0,0.21851663]
[1754794933202,0.4746,4243.9,4243.1,0.21851663]
[1754794933375,0.4746,4243.9,4242.6,0.04]
[1754794933376,0.4746,4243.9,4243.3,1.76749228]
[1754794933579,3.741,4244.2,4243.4,0.21851663]
[1754794933799,1.76716764,4244.1,4243.5,0.21851663]
[1754794934010,1.202121,4244.1,4243.6,0.21851663]
[1754794934174,0.50405334,4244.0,4243.7,0.21851663]
[1754794934382,3.747,4243.9,4243.8,0.21851663]
[1754794934815,8.98884239,4243.9,4243.8,0.21851663]
[1754794935129,1.76733416,4243.7,4242.9,1.76765073]
[1754794935313,0.02945542,4243.7,4243.0,0.21866672]
[1754794935621,0.4746,4243.9,4243.1,0.21866672]
[1754794935922,3.748,4243.8,4243.2,0.21866672]
[1754794936181,3.748,4243.8,4243.3,0.21866672]